[Event "NED-ch U14 Girls 2019"]
[Site "Assen"]
[Date "2019.04.28"]
[Round "1.1"]
[White "Huang, Wendy"]
[Black "Maris, Lauri"]
[Result "1-0"]
[ECO "C54"]
[WhiteElo "1586"]
[BlackElo "1265"]
[Annotator "NA"]
[PlyCount "77"]
[EventDate "2019.04.27"]
[EventType "swiss"]
[EventCountry "NED"]
[SourceTitle "playchess.com"]
[Source "ChessBase"]
[SourceQuality "1"]
[TimeControl "5400+30"]

1. e4 {[%emt 0:00:00]} e5 {[%emt 0:00:00]} 2. Nf3 {[%emt 0:00:00]} Nc6 {[%emt 0:00:00]} 3. Bc4 {[%emt 0:00:00]} Bc5 {[%emt 0:00:41]} 4. c3 {[%emt 0:00:00]} Nf6 {[%emt 0:02:57]} 5. d3 {[%emt 0:00:00]} h6 {[%emt 0:00:33]} 6. Nbd2 {[%emt 0:00:16]} d6 {[%emt 0:00:43]} 7. O-O {[%emt 0:00:29]} O-O {[%emt 0:00:31]} 8. Re1 {[%emt 0:00:45]} Ng4 {[%emt 0:02:27]} 9. Re2 {[%emt 0:01:51]} Bd7 {[%emt 0:03:26]} 10. h3 {[%emt 0:02:02]} Nf6 {[%emt 0:01:17]} 11. b4 {[%emt 0:03:04]} Bb6 {[%emt 0:00:51]} 12. a4 {[%emt 0:00:18]} a6 {[%emt 0:01:01]} 13. Nf1 {[%emt 0:01:34]} Ne7 {[%emt 0:14:28]} 14. Nh4 {[%emt 0:13:26]} Qc8 {[%emt 0:00:00]} 15. Be3 {[%emt 0:08:56]} Ba7 {[%emt 0:00:00]} 16. Bxa7 {[%emt 0:06:05]} Rxa7 {[%emt 0:00:00]} 17. Re3 {[%emt 0:00:54]} Kh7 {[%emt 0:02:30]} 18. d4 {[%emt 0:04:21]} Be6 {[%emt 0:05:39]} 19. Bd3 {[%emt 0:02:23]} Kh8 {[%emt 0:01:24]} 20. Ng3 {[%emt 0:03:00]} Ra8 {[%emt 0:01:55]} 21. Qd2 {[%emt 0:04:33]} Bd7 {[%emt 0:04:50]} 22. Rf3 {[%emt 0:01:53]} Qe8 {[%emt 0:01:46]} 23. Rxf6 {[%emt 0:01:56]} Kh7 {[%emt 0:01:31]} 24. Rf3 {[%emt 0:00:59]} Bxa4 {[%emt 0:01:14]} 25. Nhf5 {[%emt 0:03:20]} Nxf5 {[%emt 0:00:52]} 26. Nxf5 {[%emt 0:00:54]} Bd7 {[%emt 0:00:34]} 27. Rg3 {[%emt 0:04:21]} Bxf5 {[%emt 0:01:02]} 28. exf5 {[%emt 0:00:09]} f6 {[%emt 0:00:35]} 29. Bc2 {[%emt 0:01:59]} Qf7 {[%emt 0:01:21]} 30. Qd1 {[%emt 0:01:03]} Rad8 {[%emt 0:00:33]} 31. Bb3 {[%emt 0:01:38]} Qe8 {[%emt 0:00:22]} 32. Qg4 {[%emt 0:01:14]} Qe7 {[%emt 0:00:37]} 33. Qg6+ {[%emt 0:00:44]} Kh8 {[%emt 0:00:30]} 34. Be6 {[%emt 0:01:54]} Rb8 {[%emt 0:01:48]} 35. Re1 {[%emt 0:01:40]} b5 {[%emt 0:00:42]} 36. d5 {[%emt 0:02:54]} Ra8 {[%emt 0:00:51]} 37. Re4 {[%emt 0:01:13]} Ra7 {[%emt 0:01:27]} 38. Rh4 {[%emt 0:01:02]} Rd8 {[%emt 0:02:12]} 39. Rxh6+ {[%emt 0:01:02]} 1-0

[Event "NED-ch U14 Girls 2019"]
[Site "Assen"]
[Date "2019.04.28"]
[Round "1.2"]
[White "Bruggink, Lyne"]
[Black "Cordes, Jule"]
[Result "1/2-1/2"]
[ECO "C84"]
[WhiteElo "1425"]
[BlackElo "1564"]
[Annotator "NA"]
[PlyCount "89"]
[EventDate "2019.04.27"]
[EventType "swiss"]
[EventCountry "NED"]
[SourceTitle "playchess.com"]
[Source "ChessBase"]
[SourceQuality "1"]
[TimeControl "5400+30"]

1. e4 {[%emt 0:00:00]} e5 {[%emt 0:00:00]} 2. Nf3 {[%emt 0:00:00]} Nc6 {[%emt 0:00:00]} 3. Bb5 {[%emt 0:00:00]} a6 {[%emt 0:00:00]} 4. Ba4 {[%emt 0:00:00]} Nf6 {[%emt 0:00:03]} 5. d3 {[%emt 0:00:00]} b5 {[%emt 0:00:10]} 6. Bb3 {[%emt 0:00:00]} Be7 {[%emt 0:00:26]} 7. O-O {[%emt 0:00:17]} O-O {[%emt 0:00:19]} 8. Nc3 {[%emt 0:00:33]} d6 {[%emt 0:00:20]} 9. Nd5 {[%emt 0:00:50]} Na5 {[%emt 0:05:40]} 10. Nxe7+ {[%emt 0:00:50]} Qxe7 {[%emt 0:00:29]} 11. h3 {[%emt 0:00:48]} h6 {[%emt 0:02:02]} 12. c3 {[%emt 0:00:12]} Be6 {[%emt 0:06:23]} 13. Bc2 {[%emt 0:00:31]} c5 {[%emt 0:01:24]} 14. b3 {[%emt 0:02:53]} Rfe8 {[%emt 0:04:05]} 15. Bb2 {[%emt 0:00:55]} Qc7 {[%emt 0:06:59]} 16. d4 {[%emt 0:06:48]} Rac8 {[%emt 0:17:42]} 17. Rc1 {[%emt 0:02:22]} Bd7 {[%emt 0:05:19]} 18. d5 {[%emt 0:01:10]} c4 {[%emt 0:01:29]} 19. b4 {[%emt 0:00:25]} Nb7 {[%emt 0:00:49]} 20. a4 {[%emt 0:00:45]} Ra8 {[%emt 0:12:12]} 21. a5 {[%emt 0:00:56]} Nh5 {[%emt 0:05:38]} 22. Nh2 {[%emt 0:02:39]} Nf4 {[%emt 0:00:41]} 23. Ra1 {[%emt 0:01:16]} Qd8 {[%emt 0:03:06]} 24. Qf3 {[%emt 0:01:27]} Qg5 {[%emt 0:03:48]} 25. Kh1 {[%emt 0:01:12]} f5 {[%emt 0:10:24]} 26. Bc1 {[%emt 0:00:40]} fxe4 {[%emt 0:09:03]} 27. Bxe4 {[%emt 0:00:17]} Qe7 {[%emt 0:01:19]} 28. Bxf4 {[%emt 0:01:08]} exf4 {[%emt 0:00:40]} 29. Rfe1 {[%emt 0:00:38]} Qf6 {[%emt 0:00:09]} 30. Rac1 {[%emt 0:00:18]} Nd8 {[%emt 0:00:54]} 31. g3 {[%emt 0:02:29]} fxg3 {[%emt 0:00:54]} 32. Qxg3 {[%emt 0:00:25]} Nf7 {[%emt 0:01:02]} 33. Nf3 {[%emt 0:07:20]} Re7 {[%emt 0:01:52]} 34. Re3 {[%emt 0:04:23]} Rae8 {[%emt 0:00:09]} 35. Rce1 {[%emt 0:00:20]} Ne5 {[%emt 0:00:31]} 36. Nxe5 {[%emt 0:00:31]} Rxe5 {[%emt 0:00:19]} 37. Bg2 {[%emt 0:01:06]} Rxe3 {[%emt 0:01:13]} 38. Rxe3 {[%emt 0:00:17]} Rxe3 {[%emt 0:00:42]} 39. Qxe3 {[%emt 0:00:07]} Bc8 {[%emt 0:00:43]} 40. Qe8+ {[%emt 0:03:12]} Qf8 {[%emt 0:00:02]} 41. Qe3 {[%emt 0:00:10]} Qf7 {[%emt 0:00:00]} 42. Qb6 {[%emt 0:00:00]} Qe7 {[%emt 0:00:00]} 43. Qd4 {[%emt 0:00:54]} Kh8 {[%emt 0:06:38]} 44. Qb6 {[%emt 0:00:07]} Qf8 {[%emt 0:00:03]} 45. Qb8 1/2-1/2

[Event "NED-ch U14 Girls 2019"]
[Site "Assen"]
[Date "2019.04.28"]
[Round "1.3"]
[White "Verheij, Dana"]
[Black "Velasco, Kathleen"]
[Result "0-1"]
[ECO "C54"]
[WhiteElo "1377"]
[BlackElo "1306"]
[Annotator "NA"]
[PlyCount "84"]
[EventDate "2019.04.27"]
[EventType "swiss"]
[EventCountry "NED"]
[SourceTitle "playchess.com"]
[Source "ChessBase"]
[SourceQuality "1"]
[TimeControl "5400+30"]

1. e4 {[%emt 0:00:00]} e5 {[%emt 0:00:00]} 2. Nf3 {[%emt 0:00:00]} Nc6 {[%emt 0:00:00]} 3. Bc4 {[%emt 0:00:00]} Bc5 {[%emt 0:00:00]} 4. c3 {[%emt 0:00:09]} Nf6 {[%emt 0:00:05]} 5. d4 {[%emt 0:00:10]} exd4 {[%emt 0:00:10]} 6. e5 {[%emt 0:00:12]} d5 {[%emt 0:00:12]} 7. Bb5 {[%emt 0:00:16]} Ne4 {[%emt 0:00:47]} 8. cxd4 {[%emt 0:00:09]} Bb4+ {[%emt 0:00:39]} 9. Bd2 {[%emt 0:00:07]} Nxd2 {[%emt 0:03:00]} 10. Nbxd2 {[%emt 0:00:11]} Bg4 {[%emt 0:00:28]} 11. Qb3 {[%emt 0:01:00]} Bxf3 {[%emt 0:00:51]} 12. Bxc6+ {[%emt 0:01:32]} bxc6 {[%emt 0:00:22]} 13. Qxb4 {[%emt 0:00:21]} Bg4 {[%emt 0:08:33]} 14. O-O {[%emt 0:01:56]} Rb8 {[%emt 0:03:46]} 15. Qc5 {[%emt 0:02:06]} Qd7 {[%emt 0:01:01]} 16. Qxa7 {[%emt 0:03:04]} O-O {[%emt 0:00:21]} 17. Nb3 {[%emt 0:02:23]} Qe7 {[%emt 0:03:29]} 18. Rfc1 {[%emt 0:03:24]} Rb6 {[%emt 0:02:18]} 19. Na5 {[%emt 0:02:05]} Qd7 {[%emt 0:01:43]} 20. Rc2 {[%emt 0:02:39]} Bf5 {[%emt 0:09:12]} 21. Rc3 {[%emt 0:00:33]} Rxb2 {[%emt 0:09:30]} 22. Rxc6 {[%emt 0:07:56]} Rfb8 {[%emt 0:00:24]} 23. Nb3 {[%emt 0:02:45]} Rc8 {[%emt 0:02:25]} 24. Rac1 {[%emt 0:05:18]} Re2 {[%emt 0:13:38]} 25. Qa6 {[%emt 0:03:50]} Rb2 {[%emt 0:01:19]} 26. Qb7 {[%emt 0:04:45]} Re2 {[%emt 0:06:23]} 27. a4 {[%emt 0:02:51]} Qd8 {[%emt 0:04:13]} 28. Qa6 {[%emt 0:24:56]} Rb2 {[%emt 0:01:37]} 29. R6c3 {[%emt 0:09:54]} Rb8 {[%emt 0:03:24]} 30. Nc5 {[%emt 0:01:27]} Rb1 {[%emt 0:01:54]} 31. h3 {[%emt 0:01:12]} Rxc1+ {[%emt 0:05:20]} 32. Rxc1 {[%emt 0:00:07]} Bxh3 {[%emt 0:04:22]} 33. Rc3 {[%emt 0:07:28]} Rb1+ {[%emt 0:02:07]} 34. Kh2 {[%emt 0:00:17]} Bc8 {[%emt 0:00:20]} 35. Qc6 {[%emt 0:02:32]} Bf5 {[%emt 0:07:23]} 36. g3 {[%emt 0:05:41]} Rb6 {[%emt 0:00:18]} 37. Nb7 {[%emt 0:01:44]} Rxc6 {[%emt 0:01:34]} 38. Nxd8 {[%emt 0:01:46]} Rxc3 {[%emt 0:00:20]} 39. a5 {[%emt 0:00:14]} Bc8 {[%emt 0:00:14]} 40. f4 {[%emt 0:00:16]} Kf8 {[%emt 0:00:20]} 41. f5 {[%emt 0:01:06]} Ke8 {[%emt 0:00:31]} 42. f6 {[%emt 0:00:37]} gxf6 {[%emt 0:00:18]} 0-1

[Event "NED-ch U14 Girls 2019"]
[Site "Assen"]
[Date "2019.04.28"]
[Round "1.4"]
[White "Bogouslavskii, Veronique"]
[Black "Honkoop, Stella"]
[Result "0-1"]
[ECO "E97"]
[WhiteElo "1247"]
[BlackElo "1629"]
[Annotator "NA"]
[PlyCount "88"]
[EventDate "2019.04.27"]
[EventType "swiss"]
[EventCountry "NED"]
[SourceTitle "playchess.com"]
[Source "ChessBase"]
[SourceQuality "1"]
[TimeControl "5400+30"]

1. d4 {[%emt 0:00:00]} Nf6 {[%emt 0:00:00]} 2. c4 {[%emt 0:00:00]} g6 {[%emt 0:00:00]} 3. Nc3 {[%emt 0:00:00]} Bg7 {[%emt 0:00:00]} 4. Nf3 {[%emt 0:00:00]} d6 {[%emt 0:00:05]} 5. e4 {[%emt 0:00:18]} O-O {[%emt 0:00:08]} 6. Be2 {[%emt 0:00:05]} Ne8 {[%emt 0:00:32]} 7. O-O {[%emt 0:00:28]} f5 {[%emt 0:01:44]} 8. Be3 {[%emt 0:02:10]} f4 {[%emt 0:14:08]} 9. Bc1 {[%emt 0:00:52]} e6 {[%emt 0:03:41]} 10. b3 {[%emt 0:10:44]} Bd7 {[%emt 0:08:32]} 11. Qc2 {[%emt 0:02:50]} Nc6 {[%emt 0:00:57]} 12. Rd1 {[%emt 0:01:32]} Qc8 {[%emt 0:02:26]} 13. Bb2 {[%emt 0:04:39]} e5 {[%emt 0:01:12]} 14. d5 {[%emt 0:04:57]} Nd8 {[%emt 0:10:29]} 15. Rac1 {[%emt 0:17:10]} Nf6 {[%emt 0:00:28]} 16. Ba3 {[%emt 0:07:46]} b6 {[%emt 0:08:43]} 17. b4 {[%emt 0:17:59]} a5 {[%emt 0:09:00]} 18. b5 {[%emt 0:02:13]} Nf7 {[%emt 0:01:54]} 19. Qd2 {[%emt 0:05:13]} Bh6 {[%emt 0:04:17]} 20. Rb1 {[%emt 0:04:24]} Kh8 {[%emt 0:08:53]} 21. Qd3 {[%emt 0:01:56]} g5 {[%emt 0:05:39]} 22. Kf1 {[%emt 0:02:30]} Rg8 {[%emt 0:01:17]} 23. Bc1 {[%emt 0:02:21]} Qd8 {[%emt 0:10:27]} 24. h3 {[%emt 0:00:16]} g4 {[%emt 0:00:37]} 25. hxg4 {[%emt 0:00:06]} Nxg4 {[%emt 0:00:20]} 26. Ke1 {[%emt 0:00:32]} Ng5 {[%emt 0:00:42]} 27. Kd2 {[%emt 0:01:17]} Nxf2 {[%emt 0:00:21]} 28. Qc2 {[%emt 0:01:00]} Nxd1 {[%emt 0:00:16]} 29. Qxd1 {[%emt 0:00:47]} Nxf3+ {[%emt 0:00:39]} 30. Bxf3 {[%emt 0:00:17]} Qh4 {[%emt 0:00:22]} 31. Qe2 {[%emt 0:02:18]} Bg4 {[%emt 0:01:35]} 32. Kc2 {[%emt 0:01:31]} Bxf3 {[%emt 0:01:20]} 33. Qxf3 {[%emt 0:00:02]} Rg3 {[%emt 0:00:29]} 34. Qf1 {[%emt 0:00:34]} Rag8 {[%emt 0:00:51]} 35. Bd2 {[%emt 0:00:42]} Rxg2 {[%emt 0:00:39]} 36. Qh1 {[%emt 0:00:58]} Rh2 {[%emt 0:00:31]} 37. Qe1 {[%emt 0:00:29]} Qxe1 {[%emt 0:00:32]} 38. Rxe1 {[%emt 0:00:07]} Rgg2 {[%emt 0:00:23]} 39. Nb1 {[%emt 0:00:17]} f3 {[%emt 0:00:43]} 40. Rd1 {[%emt 0:00:32]} f2 {[%emt 0:01:12]} 41. Kc3 {[%emt 0:01:30]} Rg1 {[%emt 0:00:41]} 42. Rxg1 {[%emt 0:00:57]} fxg1=Q {[%emt 0:00:13]} 43. a4 {[%emt 0:00:12]} Qxb1 {[%emt 0:00:09]} 44. Bxh6 {[%emt 0:00:08]} Qc2# {[%emt 0:00:00]} 0-1

[Event "NED-ch U14 Girls 2019"]
[Site "Assen"]
[Date "2019.04.28"]
[Round "1.5"]
[White "Den Heijer, Rolinde"]
[Black "Jonkman Inza, Amelia Marry"]
[Result "1-0"]
[ECO "C01"]
[WhiteElo "1423"]
[BlackElo "1132"]
[Annotator "NA"]
[PlyCount "99"]
[EventDate "2019.04.27"]
[EventType "swiss"]
[EventCountry "NED"]
[SourceTitle "playchess.com"]
[Source "ChessBase"]
[SourceQuality "1"]
[TimeControl "5400+30"]

1. e4 {[%emt 0:00:00]} e6 {[%emt 0:00:00]} 2. d4 {[%emt 0:00:00]} d5 {[%emt 0:00:00]} 3. exd5 {[%emt 0:00:00]} exd5 {[%emt 0:00:00]} 4. Nf3 {[%emt 0:00:26]} Nf6 {[%emt 0:00:20]} 5. Bf4 {[%emt 0:00:25]} c6 {[%emt 0:00:47]} 6. Nbd2 {[%emt 0:00:27]} Nbd7 {[%emt 0:00:40]} 7. Bd3 {[%emt 0:00:30]} Be7 {[%emt 0:02:01]} 8. O-O {[%emt 0:00:49]} O-O {[%emt 0:06:04]} 9. Re1 {[%emt 0:01:04]} Re8 {[%emt 0:02:11]} 10. c3 {[%emt 0:01:27]} Nf8 {[%emt 0:09:38]} 11. h3 {[%emt 0:02:58]} Ng6 {[%emt 0:03:07]} 12. Be5 {[%emt 0:06:13]} Bd7 {[%emt 0:14:55]} 13. Qc2 {[%emt 0:09:31]} Rc8 {[%emt 0:11:39]} 14. Bh2 {[%emt 0:13:18]} b6 {[%emt 0:06:19]} 15. Ba6 {[%emt 0:05:34]} Ra8 {[%emt 0:02:08]} 16. Bb7 {[%emt 0:01:50]} Rb8 {[%emt 0:02:37]} 17. Ba6 {[%emt 0:01:45]} Ra8 {[%emt 0:04:06]} 18. a4 {[%emt 0:03:45]} Bc8 {[%emt 0:05:25]} 19. Bd3 {[%emt 0:01:22]} Bb7 {[%emt 0:03:09]} 20. Ne5 {[%emt 0:02:07]} Nf8 {[%emt 0:06:52]} 21. a5 {[%emt 0:05:57]} bxa5 {[%emt 0:01:59]} 22. Qa4 {[%emt 0:01:12]} Qb6 {[%emt 0:02:06]} 23. b3 {[%emt 0:01:21]} Rac8 {[%emt 0:05:12]} 24. Qxa5 {[%emt 0:03:01]} Qxa5 {[%emt 0:00:10]} 25. Rxa5 {[%emt 0:00:13]} Ra8 {[%emt 0:00:41]} 26. Rea1 {[%emt 0:00:26]} Ne6 {[%emt 0:02:33]} 27. Rxa7 {[%emt 0:00:46]} Rxa7 {[%emt 0:00:17]} 28. Rxa7 {[%emt 0:00:08]} Ba8 {[%emt 0:00:50]} 29. b4 {[%emt 0:04:10]} g6 {[%emt 0:01:33]} 30. b5 {[%emt 0:01:11]} Nd8 {[%emt 0:00:42]} 31. Rxa8 {[%emt 0:00:56]} Bd6 {[%emt 0:01:08]} 32. Nxc6 {[%emt 0:03:42]} Nb7 {[%emt 0:01:17]} 33. Rxe8+ {[%emt 0:01:21]} Nxe8 {[%emt 0:00:10]} 34. Bxd6 {[%emt 0:00:25]} Nexd6 {[%emt 0:00:56]} 35. Ne7+ {[%emt 0:00:27]} Kg7 {[%emt 0:00:08]} 36. Nxd5 {[%emt 0:00:08]} f5 {[%emt 0:00:24]} 37. Kf1 {[%emt 0:00:40]} Kf7 {[%emt 0:00:36]} 38. Ke2 {[%emt 0:00:37]} Ke6 {[%emt 0:00:52]} 39. c4 {[%emt 0:00:29]} h6 {[%emt 0:01:37]} 40. Nb3 {[%emt 0:00:26]} Nf7 {[%emt 0:01:42]} 41. Nc5+ {[%emt 0:00:42]} Nxc5 {[%emt 0:00:17]} 42. dxc5 {[%emt 0:00:08]} Kd7 {[%emt 0:01:10]} 43. Ke3 {[%emt 0:00:36]} Ne5 {[%emt 0:01:04]} 44. Kd4 {[%emt 0:00:54]} Nf7 {[%emt 0:00:28]} 45. Nf4 {[%emt 0:00:29]} g5 {[%emt 0:00:29]} 46. Bxf5+ {[%emt 0:00:20]} Ke7 {[%emt 0:00:19]} 47. Nd5+ {[%emt 0:00:18]} Ke8 {[%emt 0:01:06]} 48. Bg6 {[%emt 0:00:32]} Kf8 {[%emt 0:00:16]} 49. Bxf7 {[%emt 0:00:05]} Kxf7 {[%emt 0:00:10]} 50. b6 {[%emt 0:00:12]} 1-0

[Event "NED-ch U14 Girls 2019"]
[Site "Assen"]
[Date "2019.04.28"]
[Round "1.6"]
[White "Tangarife Ramirez, Katja"]
[Black "Mensing, Luana"]
[Result "0-1"]
[ECO "D02"]
[WhiteElo "1348"]
[BlackElo "1549"]
[Annotator "NA"]
[PlyCount "104"]
[EventDate "2019.04.27"]
[EventType "swiss"]
[EventCountry "NED"]
[SourceTitle "playchess.com"]
[Source "ChessBase"]
[SourceQuality "1"]
[TimeControl "5400+30"]

1. d4 {[%emt 0:00:00]} d5 {[%emt 0:00:00]} 2. Bf4 {[%emt 0:00:06]} e6 {[%emt 0:00:05]} 3. e3 {[%emt 0:00:57]} Nf6 {[%emt 0:00:45]} 4. Nf3 {[%emt 0:01:53]} c6 {[%emt 0:01:30]} 5. Bd3 {[%emt 0:01:10]} Be7 {[%emt 0:01:16]} 6. h3 {[%emt 0:00:57]} Nbd7 {[%emt 0:03:46]} 7. O-O {[%emt 0:01:44]} O-O {[%emt 0:01:11]} 8. c3 {[%emt 0:01:40]} b6 {[%emt 0:01:20]} 9. Nbd2 {[%emt 0:01:23]} Bb7 {[%emt 0:01:27]} 10. Rc1 {[%emt 0:01:37]} Rc8 {[%emt 0:02:51]} 11. e4 {[%emt 0:00:57]} dxe4 {[%emt 0:02:25]} 12. Nxe4 {[%emt 0:01:58]} Nxe4 {[%emt 0:00:39]} 13. Bxe4 {[%emt 0:00:53]} Nf6 {[%emt 0:00:23]} 14. Bd3 {[%emt 0:01:31]} c5 {[%emt 0:10:23]} 15. Re1 {[%emt 0:03:16]} Bxf3 {[%emt 0:11:56]} 16. Qxf3 {[%emt 0:01:51]} cxd4 {[%emt 0:00:49]} 17. Ba6 {[%emt 0:03:28]} Rc5 {[%emt 0:07:32]} 18. Red1 {[%emt 0:01:29]} e5 {[%emt 0:02:33]} 19. b4 {[%emt 0:03:41]} e4 {[%emt 0:08:47]} 20. Qg3 {[%emt 0:03:05]} Rd5 {[%emt 0:07:30]} 21. Bc4 {[%emt 0:03:23]} Rf5 {[%emt 0:07:41]} 22. Bh6 {[%emt 0:03:05]} Nh5 {[%emt 0:04:50]} 23. Qg4 {[%emt 0:01:12]} Qc8 {[%emt 0:03:50]} 24. Rxd4 {[%emt 0:01:08]} Kh8 {[%emt 0:04:24]} 25. Qxe4 {[%emt 0:04:48]} Bf6 {[%emt 0:01:14]} 26. Ba6 {[%emt 0:03:26]} Qe6 {[%emt 0:04:50]} 27. g4 {[%emt 0:06:49]} Re5 {[%emt 0:01:52]} 28. Qd3 {[%emt 0:03:23]} Re1+ {[%emt 0:00:26]} 29. Rxe1 {[%emt 0:01:53]} Qxe1+ {[%emt 0:00:23]} 30. Kg2 {[%emt 0:01:55]} Bxd4 {[%emt 0:00:51]} 31. Qxd4 {[%emt 0:02:20]} Nf6 {[%emt 0:00:00]} 32. f3 {[%emt 0:02:24]} Qe7 {[%emt 0:00:42]} 33. g5 {[%emt 0:01:19]} gxh6 {[%emt 0:01:04]} 34. Qxf6+ {[%emt 0:00:51]} Qxf6 {[%emt 0:00:08]} 35. gxf6 {[%emt 0:00:06]} Rg8+ {[%emt 0:00:08]} 36. Kf2 {[%emt 0:00:33]} Rg6 {[%emt 0:00:03]} 37. c4 {[%emt 0:00:55]} Rxf6 {[%emt 0:00:08]} 38. c5 {[%emt 0:00:32]} bxc5 {[%emt 0:00:05]} 39. Bc4 {[%emt 0:01:28]} cxb4 {[%emt 0:00:06]} 40. Ke2 {[%emt 0:00:47]} a5 {[%emt 0:00:35]} 41. Bb3 {[%emt 0:01:08]} Kg7 {[%emt 0:00:16]} 42. Ba4 {[%emt 0:01:32]} Rg6 {[%emt 0:00:32]} 43. Ke3 {[%emt 0:00:51]} Rg2 {[%emt 0:00:17]} 44. Bb3 {[%emt 0:00:23]} Rh2 {[%emt 0:00:04]} 45. h4 {[%emt 0:02:08]} Rxh4 {[%emt 0:00:09]} 46. f4 {[%emt 0:00:06]} Rh2 {[%emt 0:00:58]} 47. f5 {[%emt 0:00:36]} h5 {[%emt 0:00:16]} 48. Kd3 {[%emt 0:00:47]} h4 {[%emt 0:00:13]} 49. Ke3 {[%emt 0:00:36]} h3 {[%emt 0:00:10]} 50. Bc4 {[%emt 0:00:40]} Rb2 {[%emt 0:00:41]} 51. Bd5 {[%emt 0:00:24]} h2 {[%emt 0:00:11]} 52. Kf4 {[%emt 0:00:56]} Rxa2 {[%emt 0:00:30]} 0-1

[Event "NED-ch U14 Girls 2019"]
[Site "Assen"]
[Date "2019.04.28"]
[Round "1.7"]
[White "Morote, Luna"]
[Black "Ubbink, Anouk"]
[Result "1-0"]
[ECO "B76"]
[WhiteElo "1360"]
[BlackElo "1304"]
[Annotator "NA"]
[PlyCount "55"]
[EventDate "2019.04.27"]
[EventType "swiss"]
[EventCountry "NED"]
[SourceTitle "playchess.com"]
[Source "ChessBase"]
[SourceQuality "1"]
[TimeControl "5400+30"]

1. e4 {[%emt 0:00:00]} c5 {[%emt 0:00:00]} 2. Nf3 {[%emt 0:00:00]} d6 {[%emt 0:00:00]} 3. d4 {[%emt 0:00:00]} cxd4 {[%emt 0:00:00]} 4. Nxd4 {[%emt 0:00:00]} Nf6 {[%emt 0:00:00]} 5. Nc3 {[%emt 0:00:00]} g6 {[%emt 0:00:00]} 6. Be3 {[%emt 0:00:15]} Bg7 {[%emt 0:00:00]} 7. f3 {[%emt 0:01:05]} O-O {[%emt 0:00:05]} 8. Qd2 {[%emt 0:00:19]} Bd7 {[%emt 0:00:30]} 9. O-O-O {[%emt 0:02:28]} Nc6 {[%emt 0:00:39]} 10. g4 {[%emt 0:01:09]} Nxd4 {[%emt 0:01:06]} 11. Bxd4 {[%emt 0:00:19]} Qc7 {[%emt 0:01:58]} 12. h4 {[%emt 0:01:49]} Rfc8 {[%emt 0:03:44]} 13. h5 {[%emt 0:02:27]} b5 {[%emt 0:01:15]} 14. Bxf6 {[%emt 0:07:26]} Bxf6 {[%emt 0:00:55]} 15. Nd5 {[%emt 0:01:19]} Qc5 {[%emt 0:03:50]} 16. Nxf6+ {[%emt 0:01:03]} exf6 {[%emt 0:00:33]} 17. Bd3 {[%emt 0:01:33]} g5 {[%emt 0:02:02]} 18. h6 {[%emt 0:05:42]} Be6 {[%emt 0:04:31]} 19. Kb1 {[%emt 0:09:22]} a5 {[%emt 0:01:51]} 20. Rhg1 {[%emt 0:01:58]} b4 {[%emt 0:02:19]} 21. f4 {[%emt 0:02:16]} a4 {[%emt 0:01:13]} 22. fxg5 {[%emt 0:02:09]} fxg5 {[%emt 0:00:33]} 23. Rg2 {[%emt 0:08:14]} b3 {[%emt 0:04:39]} 24. a3 {[%emt 0:01:12]} bxc2+ {[%emt 0:00:24]} 25. Bxc2 {[%emt 0:02:02]} Rab8 {[%emt 0:01:48]} 26. Qxd6 {[%emt 0:05:47]} Qb5 {[%emt 0:05:11]} 27. Qd4 {[%emt 0:01:18]} Qc6 {[%emt 0:03:38]} 28. Qg7# {[%emt 0:00:32]} 1-0

[Event "NED-ch U14 Girls 2019"]
[Site "Assen"]
[Date "2019.04.28"]
[Round "1.8"]
[White "Molanus, Eva"]
[Black "Yeh, Nora"]
[Result "0-1"]
[ECO "D35"]
[WhiteElo "1258"]
[BlackElo "1529"]
[Annotator "NA"]
[PlyCount "104"]
[EventDate "2019.04.27"]
[EventType "swiss"]
[EventCountry "NED"]
[SourceTitle "playchess.com"]
[Source "ChessBase"]
[SourceQuality "1"]
[TimeControl "5400+30"]

1. d4 {[%emt 0:00:00]} d5 {[%emt 0:00:00]} 2. c4 {[%emt 0:00:00]} e6 {[%emt 0:00:00]} 3. Nc3 {[%emt 0:00:00]} Nf6 {[%emt 0:00:00]} 4. cxd5 {[%emt 0:00:00]} exd5 {[%emt 0:00:00]} 5. Bg5 {[%emt 0:00:06]} Be7 {[%emt 0:00:00]} 6. Nf3 {[%emt 0:00:18]} O-O {[%emt 0:00:20]} 7. e3 {[%emt 0:00:48]} c5 {[%emt 0:00:37]} 8. Be2 {[%emt 0:03:52]} Nc6 {[%emt 0:00:24]} 9. dxc5 {[%emt 0:06:43]} Be6 {[%emt 0:05:08]} 10. Nd4 {[%emt 0:04:41]} Bxc5 {[%emt 0:03:19]} 11. O-O {[%emt 0:03:04]} Nxd4 {[%emt 0:03:49]} 12. exd4 {[%emt 0:00:13]} Be7 {[%emt 0:01:13]} 13. Re1 {[%emt 0:02:16]} h6 {[%emt 0:02:36]} 14. Bh4 {[%emt 0:01:07]} Ne4 {[%emt 0:08:27]} 15. Bxe7 {[%emt 0:06:56]} Qxe7 {[%emt 0:00:46]} 16. Bg4 {[%emt 0:04:34]} Qh4 {[%emt 0:09:03]} 17. Nxe4 {[%emt 0:04:45]} Bxg4 {[%emt 0:01:53]} 18. g3 {[%emt 0:00:48]} Qh3 {[%emt 0:02:29]} 19. f3 {[%emt 0:03:30]} dxe4 {[%emt 0:01:31]} 20. fxg4 {[%emt 0:01:16]} Rfe8 {[%emt 0:01:36]} 21. Rf1 {[%emt 0:06:26]} g6 {[%emt 0:02:26]} 22. Qb3 {[%emt 0:01:37]} Re7 {[%emt 0:02:06]} 23. Rf6 {[%emt 0:01:29]} Kg7 {[%emt 0:01:53]} 24. Raf1 {[%emt 0:01:28]} Rf8 {[%emt 0:01:41]} 25. Qb4 {[%emt 0:02:46]} Rd7 {[%emt 0:01:21]} 26. Qb5 {[%emt 0:02:24]} Re7 {[%emt 0:01:00]} 27. Qc5 {[%emt 0:00:44]} Rd7 {[%emt 0:01:44]} 28. Qe5 {[%emt 0:00:57]} Kg8 {[%emt 0:02:57]} 29. Qxe4 {[%emt 0:03:30]} h5 {[%emt 0:03:11]} 30. R1f4 {[%emt 0:03:50]} Rc7 {[%emt 0:04:14]} 31. gxh5 {[%emt 0:05:30]} Rc1+ {[%emt 0:01:19]} 32. Rf1 {[%emt 0:01:05]} Rxf1+ {[%emt 0:00:34]} 33. Rxf1 {[%emt 0:00:13]} Qxh5 {[%emt 0:00:20]} 34. Qxb7 {[%emt 0:00:37]} Qa5 {[%emt 0:00:42]} 35. a3 {[%emt 0:00:59]} Qd2 {[%emt 0:00:56]} 36. Qb4 {[%emt 0:01:56]} Qe3+ {[%emt 0:00:33]} 37. Rf2 {[%emt 0:00:32]} Qc1+ {[%emt 0:00:23]} 38. Kg2 {[%emt 0:00:14]} Qc6+ {[%emt 0:00:37]} 39. Rf3 {[%emt 0:01:00]} Qc2+ {[%emt 0:00:56]} 40. Kh3 {[%emt 0:00:20]} Kg7 {[%emt 0:01:19]} 41. g4 {[%emt 0:03:16]} Rh8+ {[%emt 0:00:42]} 42. Kg3 {[%emt 0:00:13]} Qc7+ {[%emt 0:01:57]} 43. Rf4 {[%emt 0:01:41]} g5 {[%emt 0:00:58]} 44. d5 {[%emt 0:01:40]} Qxf4+ {[%emt 0:00:47]} 45. Qxf4 {[%emt 0:00:15]} gxf4+ {[%emt 0:00:05]} 46. Kxf4 {[%emt 0:00:07]} Rxh2 {[%emt 0:00:21]} 47. d6 {[%emt 0:00:07]} f6 {[%emt 0:00:24]} 48. Kf5 {[%emt 0:00:25]} Kf7 {[%emt 0:00:23]} 49. d7 {[%emt 0:00:41]} Rd2 {[%emt 0:00:12]} 50. b4 {[%emt 0:00:29]} Rxd7 {[%emt 0:00:09]} 51. a4 {[%emt 0:00:03]} Rd4 {[%emt 0:00:07]} 52. b5 {[%emt 0:00:19]} Rxa4 {[%emt 0:00:26]} 0-1